Cogmind - Beta 17 @@@ ROGUE MODE // 2026.06.26 @ 23:00:46 Player: Skysub Result: Destroyed by B-75 Beast with Heavy Plasma Cannon Performance ------------- Evolutions (1) 500 Regions Visited (6) 1200 Robots Destroyed (53) 265 Value Destroyed (1317) 1317 Prototype IDs (7) 140 Alien Tech Used (0) 0 Bonus (6650) 6650 TOTAL SCORE: 10072 Bonus ------- Prayed to X0-1V1 5000 Major X0-1V1 Interference 1350 Met Imprinter 300 Cogmind --------- Core Integrity 0/250 Matter 292/300 Energy 160/160 System Corruption 0% Temperature Cool (12) Movement Rolling (110) Ox2 Location -6/Proximity Caves Parts ------- > --- POWER (1) -------- Light Nuclear Core > --- PROPULSION (3) --- Armored Wheel Armored Wheel Armored Wheel > --- UTILITY (3) ------ Huge Storage Unit X0-1V1's Piety Tracker > --- WEAPON (2) ------- Phasing Sabre > --- INVENTORY (26) --- Improved Treads Improved Treads Improved Treads Improved Treads Spiked Medium Treads Wheel Armored Wheel Cooling System Structural Scanner Improved Signal Interpreter Tactical Coordination Suite Improved Light Armor Plating Improved Light Armor Plating Improved Light Armor Plating Bomb Factory No. 2 Heavy Beamcaster Mini Grenade Launcher RU-N14's Throwing Claymores (5) RU-N14's Throwing Claymores (2) RU-N14's Throwing Claymores (4) RU-N14's Throwing Claymores (5) Makeshift Axe Phasing Sabre CR-A16's Pointy Stick GAL Module Peak State ------------ > --- POWER ------------ Light Nuclear Core > --- PROPULSION ------- Armored Wheel Armored Wheel Armored Wheel > --- UTILITY ---------- Huge Storage Unit X0-1V1's Piety Tracker > --- WEAPON ----------- Heavy Assault Rifle RU-N14's Throwing Claymores > --- INVENTORY -------- Spiked Treads Armored Wheel Visual Processing Unit Improved Targeting Computer Tactical Coordination Suite Improved Light Armor Plating Bomb Factory No. 2 Riot Gun Improved Medium Laser Heavy Beamcaster Shotgun Shotgun Barrage Gun Mini Grenade Launcher Ripper Makeshift Axe Phasing Sabre Phasing Sabre Explosive Trap GAL Module [Rating: 39] Favorites ----------- Power Light Nuclear Core Engine Ion Engine Power Core Light Nuclear Core Propulsion Armored Wheel Treads Improved Treads Wheel Armored Wheel Utility Huge Storage Unit Device X0-1V1's Piety Tracker Storage Huge Storage Unit Processor Signal Interpreter Protection Improved Light Armor Plating Weapon Heavy Assault Rifle Energy Gun Medium Laser Ballistic Gun Heavy Assault Rifle Ballistic Cannon Flak Cannon Launcher Grenade Launcher Special Weapon Enhanced Flamer Impact Weapon Hammer Slashing Weapon Phasing Sabre Build | -11 -10 -10 -9 -9 -7 -6 ------- Run | Yrd Mat Min Mat Min Zio Pro Slots Evolved 2 | . . . 2 . . . Power . | . . . . . . . Propulsion 1 | . . . 1 . . . Utility 1 | . . . 1 . . . Weapon . | . . . . . . . Parts Attached 58 | 7 10 5 24 5 7 . Power 9 | 1 1 1 5 1 . . Engine 7 | 1 1 . 5 . . . Core 2 | . . 1 . 1 . . Reactor . | . . . . . . . Propulsion 16 | 2 4 1 7 2 . . Treads 6 | 1 1 . 3 1 . . Leg . | . . . . . . . Wheel 10 | 1 3 1 4 1 . . Hover . | . . . . . . . Flight . | . . . . . . . Utility 16 | 2 3 . 6 . 5 . Device 8 | 1 2 . 1 . 4 . Storage 3 | 1 1 . 1 . . . Processor 1 | . . . 1 . . . Hackware . | . . . . . . . Protection 4 | . . . 3 . 1 . Artifact . | . . . . . . . Weapon 17 | 2 2 3 6 2 2 . Energy Gun 2 | 1 . . 1 . . . Energy Cannon . | . . . . . . . Ballistic Gun 8 | 1 1 1 3 2 . . Ballistic Cannon 1 | . . . 1 . . . Launcher 1 | . . 1 . . . . Special Weapon 2 | . . 1 . . 1 . Impact Weapon 2 | . 1 . 1 . . . Slashing Weapon 1 | . . . . . 1 . Piercing Weapon . | . . . . . . . Special Melee Weapon . | . . . . . . . Unidentified Prototypes 4 | . 1 . 1 . 2 . Parts Lost 19 | . 3 6 7 3 . . Power 4 | . 1 1 2 . . . Propulsion 6 | . 2 1 3 . . . Utility 2 | . . . 1 1 . . Weapon 7 | . . 4 1 2 . . Highest Loss Streak 5 | . 2 3 5 2 . . To Critical Strikes . | . . . . . . . Average Backups 18 | 3 13 17 23 23 17 24 Power . | . . . . . . . Propulsion 3 | 1 2 3 5 5 2 7 Utility 8 | . 5 9 11 12 6 8 Weapon 6 | . 4 5 5 5 8 9 Tool/Special . | . . . . . . . Unused Backups 52 | . 1 . 16 5 16 14 Power 1 | . . . . . 1 . Propulsion 10 | . . . 4 1 2 3 Utility 18 | . . . 8 1 6 3 Weapon 23 | . 1 . 4 3 7 8 Tool/Special . | . . . . . . . Average Slot Usage (%) 92 | . 99 80 90 100 88 77 Engine 5 | . 13 6 7 . . . Core 5 | . . 3 . 10 11 11 Treads 3 | . 3 2 9 . . . Wheel 26 | . 23 17 18 32 33 33 Device 10 | . 14 10 8 11 10 11 Storage 11 | . 14 10 9 11 11 11 Protection 4 | . . . 8 11 2 . Energy Gun 2 | . 8 . 2 . . . Ballistic Gun 16 | . 16 19 11 22 18 . Impact Weapon 3 | . 2 4 9 . . . Peak Build Rating 39 | 9 21 26 35 36 39 39 Average Rating 26 | 5 9 22 30 34 32 39 On Entrance 22 | . 9 21 22 32 34 39 Avg Prop Armor Cover (%) 15 | 14 13 . 17 . . . Naked Turns . | . . . . . . . Heaviest Build 104 | 14 89 93 101 101 104 90 Greatest Support 69 | 20 20 20 69 36 36 36 Greatest Overweight (x) 9 | 1 8 9 9 2 2 2 Average Overweight (x) 2 | . 4 4 2 2 2 2 Largest Inventory Capacity 26 | 8 25 26 26 26 26 26 Average Capacity 25 | 6 24 25 24 26 26 26 Most Carried 26 | 6 19 20 26 26 26 26 Average Carried 19 | 3 13 17 23 25 20 26 Final Capacity 26 | 8 25 26 26 26 26 26 Final Carried 26 | 6 19 15 25 26 26 26 Class Distribution -------------------- 69% | Hauler-Mutant 28% | Mutant Dominant Class ---------------- Mutant | -10/Materials Hauler-Gunner | -10/Mines Hauler-Mutant | -9/Materials Hauler-Mutant | -9/Mines Hauler-Mutant | -7/Zion Hauler-Mutant | -6/Proximity Caves Resources | -11 -10 -10 -9 -9 -7 -6 ----------- Run | Yrd Mat Min Mat Min Zio Pro Matter Collected 1701 | 272 157 3 769 267 233 . Remotely . | . . . . . . . Salvage Created 1551 | 30 454 73 774 220 . . Parts 86 | 3 16 4 41 22 . . Haulers Intercepted 1 | . . . 1 . . . Recyclers Shooed 1 | 1 . . . . . . Parts Field Recycled . | . . . . . . . Retrieved Matter . | . . . . . . . Parts Self-Destructed . | . . . . . . . Prevented . | . . . . . . . Parts Restored . | . . . . . . . Kills | -11 -10 -10 -9 -9 -7 -6 ------- Run | Yrd Mat Min Mat Min Zio Pro Combat Hostiles Destroyed 42 | . 9 5 18 10 . . Melee 6 | . 1 . 5 . . . Guns 26 | . 6 1 9 10 . . Cannons 1 | . . . 1 . . . AOE 4 | . . 4 . . . . Classes Destroyed 9 | 1 3 1 4 . . . Worker 1 | . . . 1 . . . Builder 2 | . 1 . 1 . . . Tunneler 2 | 1 . . . 1 . . Hauler 1 | . . . 1 . . . Recycler 1 | . . . 1 . . . Watcher 4 | . 2 . 2 . . . Swarmer 15 | . . 3 4 8 . . Grunt 20 | . 9 2 7 2 . . Sentry 7 | . . . 7 . . . Best Kill Streak 4 | 1 2 2 3 4 . . Combat Bots Only 4 | . 2 2 3 4 . . Max Kills in Single Turn 2 | 1 1 2 1 1 . . Gunslinging . | . . . . . . . Exploded 2 | . . 2 . . . . Melee 1 | . 1 . 1 . . . Uniques/NPCs Destroyed . | . . . . . . . Combat | -11 -10 -10 -9 -9 -7 -6 -------- Run | Yrd Mat Min Mat Min Zio Pro Hostile Shots Fired 329 | . 65 47 149 61 . 7 Missed 68 | . 16 8 23 19 . 2 Hits 261 | . 49 39 126 42 . 5 Melee 3 | . . 3 . . . . Projectile 258 | . 49 36 126 42 . 5 Critical Strikes 4 | . . 1 3 . . . Damage Taken 3205 | . 654 549 1506 349 . 147 Core 622 | . 199 95 116 88 . 124 Absorbed by Shields . | . . . . . . . Regen/Repaired (Parts) 19 | . . . . . 19 . Core Remaining (%) 56 | 100 . 12 . . . . Volleys Fired 151 | 2 54 14 54 27 . . Largest 3 | 2 2 3 2 2 . . Hottest 120 | 70 70 120 60 46 . . Shots Fired 305 | 4 107 32 108 54 . . Gun 281 | 4 107 25 91 54 . . Cannon 17 | . . . 17 . . . Launcher 4 | . . 4 . . . . Special 3 | . . 3 . . . . Kinetic 256 | 2 67 25 108 54 . . Thermal 45 | 2 40 3 . . . . Explosive 4 | . . 4 . . . . Electromagnetic . | . . . . . . . Robot Hit Streak 19 | 2 13 4 19 6 . . Robot Miss Streak 8 | 1 3 1 8 2 . . Penetration Max . | . . . . . . . Secondary Targets . | . . . . . . . Shots Hit Robots 241 | 3 80 21 104 33 . . Core Hits 87 | 2 21 13 37 14 . . Critical Kills 3 | . . . 3 . . . Critical Parts Destroyed 5 | . 2 . 3 . . . Critical Strikes 12 | . 5 1 6 . . . Burn 4 | . 3 1 . . . . Destroy 1 | . . . 1 . . . Smash 7 | . 2 . 5 . . . Melee Attacks 48 | . 5 . 43 . . . Impact 48 | . 5 . 43 . . . Slashing . | . . . . . . . Piercing . | . . . . . . . Sneak Attacks 1 | . . . 1 . . . Combat Hostiles . | . . . . . . . Follow-up Attacks 8 | . . . 8 . . . Damage Inflicted 3822 | 33 842 434 2009 504 . . Guns 2250 | 33 720 130 863 504 . . Cannons 345 | . . . 345 . . . Explosions 280 | . . 280 . . . . Melee 923 | . 122 . 801 . . . Ramming . | . . . . . . . Kinetic 2260 | 8 410 130 1208 504 . . Thermal 359 | 25 310 24 . . . . Explosive 280 | . . 280 . . . . Electromagnetic . | . . . . . . . Impact 923 | . 122 . 801 . . . Slashing . | . . . . . . . Piercing . | . . . . . . . Highest Corruption . | . . . . . . . Average Corruption . | . . . . . . . Corruption Purged . | . . . . . . . Corruption Blocked . | . . . . . . . Overload Shots . | . . . . . . . Overflow Damage 228 | . 58 16 154 . . . Projectiles . | . . . . . . . Explosions 16 | . . 16 . . . . Melee 212 | . 58 . 154 . . . Knockbacks 6 | . . . 6 . . . Impact 1 | . . . 1 . . . Kinetic 4 | . . . 4 . . . Secondary 1 | . . . 1 . . . Self-Inflicted Damage 47 | . . 47 . . . . Shots 2 | . . 2 . . . . Rammed . | . . . . . . . Targets Rammed . | . . . . . . . Kicked . | . . . . . . . Crushed . | . . . . . . . Highest Temperature 241 | 30 241 236 27 13 . . Average Temperature 61 | 18 65 132 9 7 . . Received Heat Transfer 1008 | . 360 138 441 45 . 24 Effects 2 | . . 2 . . . . Interference 2 | . . 2 . . . . Siege Activations . | . . . . . . . Martial Activations . | . . . . . . . Shielding Activations . | . . . . . . . Robots Disrupted . | . . . . . . . Combat Hostiles . | . . . . . . . Robots Corrupted 5 | . 2 . 3 . . . Combat Hostiles 4 | . 1 . 3 . . . Parts Fried 7 | . 2 . 5 . . . Impact Corruptions 11 | . 3 . 8 . . . Robots Melted 1 | . 1 . . . . . Combat Hostiles 1 | . 1 . . . . . Parts Melted 3 | . 3 . . . . . Heat Transferred 1541 | 74 1147 320 . . . . Parts Sabotaged . | . . . . . . . Parts Stolen . | . . . . . . . Parts Stripped . | . . . . . . . Power Chain Reactions . | . . . . . . . Alert | -11 -10 -10 -9 -9 -7 -6 ------- Run | Yrd Mat Min Mat Min Zio Pro Maximum Alert Level . | . . . . . . . Low Security (%) 100 | 100 100 100 100 100 . . Level 1 . | . . . . . . . Level 2 . | . . . . . . . Level 3 . | . . . . . . . Level 4 . | . . . . . . . Level 5 . | . . . . . . . High Security . | . . . . . . . Max Security . | . . . . . . . Peak Influence 184 | 5 84 123 184 123 . . Initial 63 | . . 16 24 63 . . Average 52 | . 36 89 53 86 . . Influence Increases 1324 | 5 316 177 591 235 . . Destroy 0b10 Robot/C 840 | . 180 100 360 200 . . Destroy 0b10 Robot/NC 55 | 5 15 . 30 5 . . Destroy Leader 240 | . 54 30 126 30 . . Successful Hack 35 | . 21 . 14 . . . Select Force Hacks 30 | . . . 30 . . . Disable Machine 15 | . . . 15 . . . Destroy Structure 34 | . 1 32 1 . . . Lose Combat Pursuer 75 | . 45 15 15 . . . Influence Decreases 1324 | 5 274 156 492 343 54 . Entered New Map 218 | . . 26 39 99 54 . Time Decay 943 | 5 244 70 410 214 . . Lost Part 163 | . 30 60 43 30 . . Squads Dispatched 9 | . 2 1 6 . . . Investigation 5 | . 1 1 3 . . . Extermination . | . . . . . . . Reinforcement 4 | . 1 . 3 . . . Assault . | . . . . . . . Garrison . | . . . . . . . Intercept . | . . . . . . . Searches Triggered . | . . . . . . . Construction Impeded . | . . . . . . . Haulers Reinforced . | . . . . . . . Active Scanning Responses . | . . . . . . . Cargo Convoy Interrupts . | . . . . . . . Stealth | -11 -10 -10 -9 -9 -7 -6 --------- Run | Yrd Mat Min Mat Min Zio Pro Distress Signals 4 | . . . 4 . . . Communications Jammed . | . . . . . . . Distress Signals . | . . . . . . . Times Spotted 83 | . 17 26 29 10 . 1 Peak Tracking Total 17 | . 3 17 4 4 . 1 Tactical Retreats 5 | . 2 2 1 . . . Traps | -11 -10 -10 -9 -9 -7 -6 ------- Run | Yrd Mat Min Mat Min Zio Pro Traps Triggered 3 | . 2 . 1 . . . Indirectly . | . . . . . . . Trap Hack Attempts . | . . . . . . . Triggered . | . . . . . . . Disarmed . | . . . . . . . Reprogrammed . | . . . . . . . Reused . | . . . . . . . Traps Extracted . | . . . . . . . Installed . | . . . . . . . Triggered . | . . . . . . . Most Traps Carried 3 | . . . . 3 2 . Machines | -11 -10 -10 -9 -9 -7 -6 ---------- Run | Yrd Mat Min Mat Min Zio Pro Machines Disabled 2 | . . . 2 . . . Max in Single Turn 1 | . . . 1 . . . Machines Repaired . | . . . . . . . Machines Dismantled . | . . . . . . . Machines Sabotaged . | . . . . . . . Overloaded Fab Kills . | . . . . . . . Hacking | -11 -10 -10 -9 -9 -7 -6 --------- Run | Yrd Mat Min Mat Min Zio Pro Machines Accessed 13 | . 8 . 4 . 1 . Terminals 9 | . 7 . 2 . . . Fabricators . | . . . . . . . Repair Stations . | . . . . . . . Recycling Units 2 | . 1 . 1 . . . Scanalyzers 1 | . . . 1 . . . Garrison Access . | . . . . . . . Total Hacks 49 | . 29 . 14 . 6 . Successful 30 | . 17 . 7 . 6 . Failed 18 | . 12 . 6 . . . Catastrophic 2 | . 2 . . . . . Database Lockouts 1 | . . . 1 . . . Manual 33 | . 22 . 10 . 1 . Terminals 34 | . 26 . 8 . . . Fabricators . | . . . . . . . Repair Stations . | . . . . . . . Recycling Units 5 | . 3 . 2 . . . Scanalyzers 4 | . . . 4 . . . Garrison Access . | . . . . . . . Terminal Hacks 14 | . 7 . 1 . 6 . Part Schematic 6 | . . . . . 6 . Prototype ID Bank 1 | . 1 . . . . . Branch Access Points 1 | . 1 . . . . . Terminal Index 2 | . 1 . 1 . . . Alert Level 1 | . 1 . . . . . Recall Investigation 1 | . 1 . . . . . Hauler Manifests 1 | . 1 . . . . . Registered Components 1 | . 1 . . . . . Fabricator Hacks . | . . . . . . . Repair Station Hacks . | . . . . . . . Recycling Unit Hacks 2 | . 1 . 1 . . . Report Inventory 1 | . . . 1 . . . Retrieve Components 1 | . 1 . . . . . Scanalyzer 2 | . . . 2 . . . Retrieve Study 2 | . . . 2 . . . Garrison Access Hacks . | . . . . . . . Unauthorized Hacks 12 | . 9 . 3 . . . Terminals 10 | . 8 . 2 . . . Botnet 4 | . 3 . 1 . . . Skim 6 | . 5 . 1 . . . Fabricators . | . . . . . . . Repair Stations . | . . . . . . . Recycling Units 2 | . 1 . 1 . . . Reject 1 | . 1 . . . . . Tunnel 1 | . . . 1 . . . Scanalyzers . | . . . . . . . Garrison Access . | . . . . . . . Data Cores Recovered . | . . . . . . . Used . | . . . . . . . Hacking Detections 10 | . 7 . 3 . . . Full Trace Events 1 | . . . 1 . . . Feedback Events . | . . . . . . . Feedback Blocked . | . . . . . . . Robot Schematics Acquired 3 | . . . . . 3 . Robots Built . | . . . . . . . Authchips . | . . . . . . . Time . | . . . . . . . Total Robot Build Rating . | . . . . . . . Part Schematics Acquired 20 | . . . . . 20 . Parts Built . | . . . . . . . Authchips . | . . . . . . . Time . | . . . . . . . Total Part Build Rating . | . . . . . . . Part Studies Acquired 2 | . . . 2 . . . Parts Repaired . | . . . . . . . Time . | . . . . . . . Parts Recycled . | . . . . . . . Recycled Matter . | . . . . . . . Retrieved Matter . | . . . . . . . Retrieved Components 10 | . 10 . . . . . Parts Scanalyzed . | . . . . . . . Part Schematics Acquired . | . . . . . . . Parts Damaged . | . . . . . . . Bothacking | -11 -10 -10 -9 -9 -7 -6 ------------ Run | Yrd Mat Min Mat Min Zio Pro Used RIF Installer . | . . . . . . . Robots Hacked . | . . . . . . . Non-combat . | . . . . . . . Combat . | . . . . . . . Robot Hacks Applied . | . . . . . . . Relay Couplers Released . | . . . . . . . Fabnet Peak Effective % . | . . . . . . . Robots Rewired . | . . . . . . . Allies Hacked . | . . . . . . . Hacks Repelled . | . . . . . . . Allies | -11 -10 -10 -9 -9 -7 -6 -------- Run | Yrd Mat Min Mat Min Zio Pro Total Allies . | . . . . . . . Largest Group . | . . . . . . . Highest-Rated Group . | . . . . . . . Highest-Rated Ally . | . . . . . . . Total Orders . | . . . . . . . Ally Attacks . | . . . . . . . Total Damage . | . . . . . . . Kills . | . . . . . . . Allies Corrupted . | . . . . . . . Allies Melted . | . . . . . . . X0-1V1 Amusement Gains 128 | . 3 45 30 . . 50 Good Acts 19 | . . 9 6 4 . . Bad Acts 12 | . 1 9 1 1 . . Intel | -11 -10 -10 -9 -9 -7 -6 ------- Run | Yrd Mat Min Mat Min Zio Pro Active Infowar (turns) 965 | 25 940 . . . . . Terrain 285 | 25 260 . . . . . Structural 680 | . 680 . . . . . Robot Analysis Total . | . . . . . . . Derelict Logs Recovered 3 | . . . . 1 2 . Drone Launches . | . . . . . . . Drone Recoveries . | . . . . . . . Exploration | -11 -10 -10 -9 -9 -7 -6 ------------- Run | Yrd Mat Min Mat Min Zio Pro Turns Passed 4168 | 75 976 143 1083 440 1430 21 Spaces Moved 2626 | 56 509 61 471 303 1207 19 Core 2 | 2 . . . . . . Treads 79 | 4 . . 75 . . . Legs . | . . . . . . . Wheels 2545 | 50 509 61 396 303 1207 19 Hover . | . . . . . . . Flight . | . . . . . . . Fastest Speed 50 | 50 95 140 110 110 110 110 Average Speed 125 | 94 151 153 146 110 110 110 Slowest Speed 240 | 160 200 215 240 110 110 110 Overloaded Moves . | . . . . . . . Propulsion Burnouts . | . . . . . . . Robots Hopped . | . . . . . . . Potential Cave-ins . | . . . . . . . Cave-ins Triggered . | . . . . . . . Exploration Rate (%) 44 | 3 87 22 41 65 85 8 Regions Visited 6 Branch Regions 4 Pre-discovered Areas 7 | . 2 . 1 1 3 . Known Exits Taken 3 | . 1 1 1 . . . Unknown Exits Taken 3 | 1 . . . 1 1 . Scrap Searched 4 | . . . . 1 3 . Spaces Dug 1 | . 1 . . . . . Terrain Destroyed 37 | . 1 36 . . . . Melee 1 | . 1 . . . . . Projectile . | . . . . . . . AOE 36 | . . 36 . . . . Terrain Rammed . | . . . . . . . Walls Destroyed . | . . . . . . . Machines Disabled . | . . . . . . . Actions | -11 -10 -10 -9 -9 -7 -6 --------- Run | Yrd Mat Min Mat Min Zio Pro Total 3175 | 70 611 83 703 357 1332 19 Wait 111 | . 17 . 57 10 27 . Move 2620 | 55 508 60 470 302 1206 19 Hop . | . . . . . . . Pick Up 107 | 6 16 1 37 7 40 . Fast Attach 17 | 7 . 1 6 . 3 . Attach 21 | . 3 4 6 4 4 . Detach 8 | . . . . . 8 . Swap 30 | . 7 3 17 2 1 . Drop 73 | . 1 . 24 5 43 . Fire 151 | 2 54 14 54 27 . . Melee 37 | . 5 . 32 . . . Ram . | . . . . . . . Kick . | . . . . . . . Crush . | . . . . . . . Escape Stasis . | . . . . . . . Rewire . | . . . . . . . Trap . | . . . . . . . Miscellaneous . | . . . . . . . Route ------- -11/Scrapyard -10/Materials (discovered 6 exits: *Mat x3 / *Min x2 / *Sub) -10/Mines -9/Materials (discovered 4 exits: *Mat x3 / *Min) -9/Mines (discovered 2 exits: *Mat / *Zio) -7/Zion -6/Proximity Caves History --------- Turn | Location | Event 6 | -11/Scrapyard | Discovered new exit (range 15) 76 | -11/Scrapyard | Entered Materials 171 | -10/Materials | Discovered new exit (range 13) 241 | -10/Materials | Discovered new exit (range 5) 303 | -10/Materials | Build established: Mutant 494 | -10/Materials | Discovered new exit (range 5) 563 | -10/Materials | Identified exit to Mines 576 | -10/Materials | Derelicts attacked the area 719 | -10/Materials | Identified exit to Materials 761 | -10/Materials | Discovered exit to Materials (range 14) 763 | -10/Materials | Learned location of Recycling (-7) 833 | -10/Materials | Loaded intel: 7 trap records 836 | -10/Materials | Identified exit to Subcaves 837 | -10/Materials | Learned location of 2 exits from Materials 842 | -10/Materials | Learned Storage emergency access door positions 857 | -10/Materials | Learned Storage trap positions 881 | -10/Materials | Learned location of Mines (-10) 886 | -10/Materials | Core integrity fell below 50% 979 | -10/Materials | Prayed at D.C.S.S. Altar Unit 1052 | -10/Materials | Entered Mines 1054 | -10/Mines | Core integrity fell below 20% 1064 | -10/Mines | Weapon slot count temporarily expanded by X0-1V1 (+3) 1081 | -10/Mines | Core integrity restored by X0-1V1 (+62) 1096 | -10/Mines | Inventory capacity permanently improved by X0-1V1 (+1) 1098 | -10/Mines | X0-1V1 sent someone to keep an eye on you 1110 | -10/Mines | A weapon hastily lodged in a ceiling crevice suddenly fell to the ground 1138 | -10/Mines | Discovered exit to Materials (range 4) 1138 | -10/Mines | X0-1V1 whisked you away to safety 1154 | -10/Mines | Assembled infested the area 1165 | -10/Mines | Lost 3 parts (1p2w) 1174 | -10/Mines | Wheel reconfigured into Item Mimic 1195 | -10/Mines | Entered Materials 1195 | -9/Materials | Evolved 2 slots: Propulsion x1, Utility x1 1196 | -9/Materials | Identified exit to Materials 1220 | -9/Materials | Lost 3 parts (1n2w) 1305 | -9/Materials | X0-1V1 announced a LAN party 1315 | -9/Materials | Lost 5 parts (1p2n1u1w) 1416 | -9/Materials | X0-1V1 activates XOMVISION 1588 | -9/Materials | Melee accuracy permanently improved by X0-1V1 (+5%) 1613 | -9/Materials | Build established: Hauler-Mutant 1795 | -9/Materials | Central database locked down 1898 | -9/Materials | Discovered exit to Materials (range 16) 2205 | -9/Materials | Discovered new exit (range 16) 2260 | -9/Materials | Identified exit to Mines 2278 | -9/Materials | Entered Mines 2399 | -9/Mines | Core integrity fell below 50% 2407 | -9/Mines | Discovered exit to Materials (range 12) 2713 | -9/Mines | A Derelict revealed a hidden shortcut to a safe place 2718 | -9/Mines | Entered Zion 2746 | -7/Zion | Found GAL Module 2764 | -7/Zion | Discovered new exit (range 15) 3051 | -7/Zion | Found Prototype Device 3056 | -7/Zion | Identified Bomb Factory No. 2 3086 | -7/Zion | Received a visual enhancement algorithm 3087 | -7/Zion | Ran a visual enhancement algorithm 3421 | -7/Zion | Met Imprinter 3544 | -7/Zion | Learned 8 Factory zone layouts 3627 | -7/Zion | Found Prototype Special Weapon 3627 | -7/Zion | Identified RU-N14's Throwing Claymores 3631 | -7/Zion | Found RU-N14's Throwing Claymores 3633 | -7/Zion | Found RU-N14's Throwing Claymores 3635 | -7/Zion | Found RU-N14's Throwing Claymores 3677 | -7/Zion | Found CR-A16's Pointy Stick 4148 | -7/Zion | Entered Proximity Caves 4161 | -6/Proximity Caves | Spotted B-75 Beast 4167 | -6/Proximity Caves | Core integrity fell below 20% 4169 | -6/Proximity Caves | Destroyed by B-75 Beast with Heavy Plasma Cannon Last Messages --------------- 03995_ IL-Y7J(z) fiddles with the Twisted Machinery. 03998_ Acquired 56 matter. 03998_ IL-Y7J(z) shifts around the Twisted Machinery. 04035_ Cobbler Unit puts together Sub. Machine Gun. 04051_ Acquired 16 matter. 04063_ Acquired 66 matter. 04064_ Acquired 1 matter. 04065_ Dropped Ripper. 04065_ Acquired Spk. Medium Treads. 04066_ Acquired 2 matter. 04067_ Acquired 1 matter. 04075_ Cobbler Unit puts together Piercing Trap. 04075_ Acquired 1 matter. 04075_ Dropped Cobbler Unit. 04078_ Acquired 2 matter. 04122_ Acquired Imp. Signal Interpreter. LOCATION=UNKNOWN GOAL=ESCAPE 04166_ Knocked back. 04169_ X0-1V1 chuckles heartily! Map ----- +----------------------------------------------------+ | ?????????????????????????????????????????????????? | | ?????????????????????????????????????????????????? | | ?????????????????????????????????????????????????? | | ?????????????????????????????????????????????????? | | ?????????????????????????????????????????????????? | | ?????????????????????????????????????????????????? | | ?????????????????????????????????????????????????? | | ?????????????????????????????????????????????????? | | ????????????????????????????######???????????????? | | ????????????????????????????# ###?????????????? | | ????????????????????????????# # # ##????????????? | | ????????????????????????????## # ##???????????? | | ?????????????????????????????# #???????????? | | ?????????????????????#???????## ###???????????? | | ?????????????????????# ???????## ###?????????????? | | ?????????????????????# ????????# #???????????????? | | ?????????????????????# ????????# #???????????????? | | ?????????????????????# ???##### #???????????????? | | ??????????????#??????# ???# #???????????????? | | ???????????#### ????# #### ####???????????????? | | ???????????# #### #;#; #??????????????????? | | ??????????# #??????????????????? | | ???????????????# ##?????????????????? | | ???????????????## ##????????????????? | | ????????????????# ##???????????????? | | ????????????????# @ #???????????????? | | ????????????????# #??????????????? | | ????????????????# #??????????????? | | ???????????????# #??????????????? | | ??????????????# #??????????????? | | ??????????????# #??????????????? | | ??????????????# BB #?????????????? | | ?????????????# BB #????????????? | | ????????????? #????????????? | | ????????????? ???????????? | | ?????????????? ### ????????????? | | ?????????????? ######?? #????????????? | | ???????????????? ????????? ??????????????? | | ?????????????????? ?????????????????????????? | | ????????????????????? ?????????????????????????? | | ?????????????????????????????????????????????????? | | ?????????????????????????????????????????????????? | | ?????????????????????????????????????????????????? | | ?????????????????????????????????????????????????? | | ?????????????????????????????????????????????????? | | ?????????????????????????????????????????????????? | | ?????????????????????????????????????????????????? | | ?????????????????????????????????????????????????? | | ?????????????????????????????????????????????????? | | ?????????????????????????????????????????????????? | +----------------------------------------------------+ Best States ------------- Heat Dissipation 28 Energy Generation 14 Energy Capacity 265 Matter Stores 300 Matter Capacity 300 Sight Range 16 Terrain Scan Range 16 Terrain Scan Density 10 Armor Coverage 225 Evasion (%) 44 Recoil Reduction 3 Item Schematics ----------------- Battle Cannon | -7/Zion | Free Hvy. Riot Gun | -7/Zion | Free Barrage Gun | -7/Zion | Free Ripper | -7/Zion | Free Bore Cannon | -7/Zion | Free Phasing Sabre | -7/Zion | Free Lgt. Angular Momentum Engine | -7/Zion | Archive Flak Gun | -7/Zion | Archive Hvy. Treads | -7/Zion | Archive Lrn. Tractor Beam | -7/Zion | Archive Chainsword | -7/Zion | Archive Energy Well | -7/Zion | Archive Dynamic Insulation System | -7/Zion | Archive Imp. Trap Scanner | -7/Zion | Archive Xenon Bombardment Thruster | -7/Zion | Archive System Restoration Module | -7/Zion | Archive Flexi-carbon Leg | -7/Zion | Archive Recalibrator | -7/Zion | Archive Imp. Medium Armor Plating | -7/Zion | Archive Arm. Leg | -7/Zion | Archive Robot Schematics ------------------ W-25 Informer | -7/Zion | Archive T-07 Excavator | -7/Zion | Archive G-47 Trooper | -7/Zion | Archive Fabricated ------------ Nothing Repaired ---------- Nothing Studied --------- Arm. Wheel | -9/Materials | Hacked Imp. Treads | -9/Materials | Hacked Alien Tech Used ----------------- None Achievements -------------- None Challenges ------------ None Game ------ Seed SchematicStealthMantle Manual? 0 Play Time 00:47:15 Cumulative 321.3 hours Start 2026.06.23 @ 15:03:38 End 2026.06.26 @ 23:00:46 Sessions 5 Manual Loads 0 Difficulty Rogue Special Mode None Game No. 387 Rogue 387 Adventurer 0 Explorer 0 Win Type - Total 21 Types 13/0/3/1/1/0/1/1/0/1 Lore% 78 Gallery% 74 Achievement% 64 Wizard Run 0 Options --------- Layout 1 ASCII 0 Keyboard 1 Movement Numpad Keybinds 0 Fullscreen 2 Font 32/SmallcapsGlow Map View 77x35 Zoom Use 0% Tactical HUD 1 Map Filters NONE Filters NONE Steam 1 RUN: 4ccb5f40-70c2-4227-9c37-120469340c30